[Event "Titled Tuesday Blitz April 25 Early 2023"]
[White "hakanazeri2"]
[Black "Manukian, Artak"]
[BlackFideId "13301373"]
[WhiteElo "2629"]
[BlackElo "2130"]
[Result "0-1"]
[Round "10"]
[TimeControl "180+2"]
[Date "2023.04.25"]
[WhiteClock "0:00:07"]
[BlackClock "0:01:04"]

1. d4 {[%clk 0:02:53]}  d5 {[%clk 0:02:59]} 2. c4 {[%clk 0:02:52]}  dxc4 {[%clk 0:02:59]} 3. Nf3 {[%clk 0:02:47]}  Nf6 {[%clk 0:02:59]} 4. e3 {[%clk 0:02:45]}  e6 {[%clk 0:02:58]} 5. Bxc4 {[%clk 0:02:44]}  c5 {[%clk 0:02:59]} 6. O-O {[%clk 0:02:42]}  a6 {[%clk 0:02:59]} 7. Nc3 {[%clk 0:02:41]}  b5 {[%clk 0:02:57]} 8. Bb3 {[%clk 0:02:41]}  Bb7 {[%clk 0:02:57]} 9. Bc2 {[%clk 0:02:34]}  Nc6 {[%clk 0:02:52]} 10. Re1 {[%clk 0:02:30]}  cxd4 {[%clk 0:02:32]} 11. exd4 {[%clk 0:02:22]}  Nb4 {[%clk 0:02:32]} 12. Bb3 {[%clk 0:02:14]}  Be7 {[%clk 0:02:31]} 13. Bg5 {[%clk 0:02:07]}  Rc8 {[%clk 0:02:17]} 14. Ne5 {[%clk 0:01:48]}  Nbd5 {[%clk 0:02:09]} 15. Bxf6 {[%clk 0:01:40]}  Bxf6 {[%clk 0:02:02]} 16. Qf3 {[%clk 0:01:14]}  O-O {[%clk 0:01:58]} 17. Nxd5 {[%clk 0:01:08]}  Bxd5 {[%clk 0:01:55]} 18. Bxd5 {[%clk 0:01:08]}  Qxd5 {[%clk 0:01:56]} 19. Qxd5 {[%clk 0:01:06]}  exd5 {[%clk 0:01:56]} 20. Nd7 {[%clk 0:01:05]}  Rfe8 {[%clk 0:01:52]} 21. Nxf6+ {[%clk 0:01:01]}  gxf6 {[%clk 0:01:53]} 22. Rxe8+ {[%clk 0:01:00]}  Rxe8 {[%clk 0:01:51]} 23. Kf1 {[%clk 0:01:01]}  Rc8 {[%clk 0:01:44]} 24. a4 {[%clk 0:00:39]}  b4 {[%clk 0:01:40]} 25. b3 {[%clk 0:00:39]}  Rc3 {[%clk 0:01:37]} 26. Rb1 {[%clk 0:00:39]}  f5 {[%clk 0:01:32]} 27. Ke2 {[%clk 0:00:33]}  f4 {[%clk 0:01:28]} 28. g3 {[%clk 0:00:29]}  fxg3 {[%clk 0:01:23]} 29. hxg3 {[%clk 0:00:29]}  f5 {[%clk 0:01:19]} 30. Kd2 {[%clk 0:00:26]}  Kf7 {[%clk 0:01:16]} 31. Rb2 {[%clk 0:00:19]}  Kf6 {[%clk 0:01:09]} 32. Rc2 {[%clk 0:00:18]}  Rxc2+ {[%clk 0:01:05]} 33. Kxc2 {[%clk 0:00:19]}  f4 {[%clk 0:01:05]} 34. Kd3 {[%clk 0:00:07]}  Kf5 {[%clk 0:01:04]} 0-1


[Site "https://www.chess.com"]

[Event "Titled Tuesday Blitz April 25 Early 2023"]
[White "Kozin, Yuri"]
[Black "Mrudul Dehankar"]
[WhiteFideId "4129920"]
[BlackFideId "25096990"]
[WhiteElo "2614"]
[BlackElo "2139"]
[Result "0-1"]
[Round "10"]
[TimeControl "180+2"]
[Date "2023.04.25"]
[WhiteClock "0:00:28"]
[BlackClock "0:00:16"]

1. e4 {[%clk 0:03:00]}  c6 {[%clk 0:02:59]} 2. d4 {[%clk 0:03:00]}  d5 {[%clk 0:02:57]} 3. exd5 {[%clk 0:03:01]}  cxd5 {[%clk 0:02:57]} 4. c4 {[%clk 0:03:02]}  Nf6 {[%clk 0:02:57]} 5. Nc3 {[%clk 0:03:02]}  Nc6 {[%clk 0:02:56]} 6. Bg5 {[%clk 0:03:02]}  Be6 {[%clk 0:02:55]} 7. Be2 {[%clk 0:03:02]}  h6 {[%clk 0:02:40]} 8. Bxf6 {[%clk 0:03:01]}  exf6 {[%clk 0:02:39]} 9. Bf3 {[%clk 0:03:01]}  Bb4 {[%clk 0:02:39]} 10. Ne2 {[%clk 0:02:58]}  Bxc3+ {[%clk 0:02:21]} 11. Nxc3 {[%clk 0:02:56]}  Ne7 {[%clk 0:02:21]} 12. c5 {[%clk 0:02:55]}  O-O {[%clk 0:02:20]} 13. O-O {[%clk 0:02:54]}  Nc6 {[%clk 0:02:17]} 14. b4 {[%clk 0:02:50]}  a6 {[%clk 0:02:06]} 15. Rb1 {[%clk 0:02:39]}  Qd7 {[%clk 0:02:04]} 16. a4 {[%clk 0:02:38]}  g5 {[%clk 0:02:00]} 17. g3 {[%clk 0:02:33]}  Kg7 {[%clk 0:01:58]} 18. b5 {[%clk 0:02:12]}  axb5 {[%clk 0:01:56]} 19. Nxb5 {[%clk 0:02:13]}  Na5 {[%clk 0:01:53]} 20. Nd6 {[%clk 0:02:07]}  Rfb8 {[%clk 0:01:47]} 21. Rb6 {[%clk 0:01:49]}  Ra6 {[%clk 0:01:14]} 22. Qb1 {[%clk 0:01:33]}  Rxb6 {[%clk 0:01:07]} 23. Qxb6 {[%clk 0:01:33]}  Qxa4 {[%clk 0:01:05]} 24. Bxd5 {[%clk 0:01:08]}  Bxd5 {[%clk 0:00:34]} 25. Nf5+ {[%clk 0:01:08]}  Kg6 {[%clk 0:00:34]} 26. Ne7+ {[%clk 0:01:05]}  Kg7 {[%clk 0:00:34]} 27. Nxd5 {[%clk 0:01:04]}  Qxd4 {[%clk 0:00:35]} 28. Nc7 {[%clk 0:00:58]}  Nc4 {[%clk 0:00:29]} 29. Ne6+ {[%clk 0:00:53]}  fxe6 {[%clk 0:00:24]} 30. Qc7+ {[%clk 0:00:54]}  Kg6 {[%clk 0:00:20]} 31. Qxb8 {[%clk 0:00:54]}  Qxc5 {[%clk 0:00:20]} 32. Qxb7 {[%clk 0:00:47]}  Ne5 {[%clk 0:00:20]} 33. Qe4+ {[%clk 0:00:38]}  f5 {[%clk 0:00:19]} 34. Qa8 {[%clk 0:00:38]}  Ng4 {[%clk 0:00:18]} 35. Qg8+ {[%clk 0:00:33]}  Kf6 {[%clk 0:00:17]} 36. Qd8+ {[%clk 0:00:30]}  Kg6 {[%clk 0:00:17]} 37. h3 {[%clk 0:00:30]}  Ne5 {[%clk 0:00:16]} 38. Qg8+ {[%clk 0:00:27]}  Kf6 {[%clk 0:00:16]} 39. Qh8+ {[%clk 0:00:27]}  Kg6 {[%clk 0:00:16]} 40. Qxe5 {[%clk 0:00:28]}  Qxe5 {[%clk 0:00:16]} 41. Kg2 {[%clk 0:00:28]}  Qd5+ {[%clk 0:00:16]} 42. Kg1 {[%clk 0:00:28]}  f4 {[%clk 0:00:16]} 43. g4 {[%clk 0:00:28]}  Qd3 {[%clk 0:00:15]} 44. Re1 {[%clk 0:00:28]}  Kf6 {[%clk 0:00:16]} 45. Rc1 {[%clk 0:00:28]}  Qxh3 {[%clk 0:00:16]} 0-1


[Site "https://www.chess.com"]

[Event "Titled Tuesday Blitz April 25 Early 2023"]
[White "Jaskolka, Tomasz"]
[Black "Skliarov, Viktor"]
[WhiteFideId "1170791"]
[BlackFideId "14106736"]
[WhiteElo "2155"]
[BlackElo "2317"]
[Result "1-0"]
[Round "10"]
[TimeControl "180+2"]
[Date "2023.04.25"]
[WhiteClock "0:00:21"]
[BlackClock "0:00:05"]

1. d4 {[%clk 0:02:58]}  Nf6 {[%clk 0:02:59]} 2. Bf4 {[%clk 0:02:57]}  g6 {[%clk 0:02:59]} 3. Nc3 {[%clk 0:02:57]}  d5 {[%clk 0:02:56]} 4. e3 {[%clk 0:02:57]}  c6 {[%clk 0:02:54]} 5. Qd2 {[%clk 0:02:51]}  Bf5 {[%clk 0:02:51]} 6. Nf3 {[%clk 0:02:50]}  Nbd7 {[%clk 0:02:49]} 7. h3 {[%clk 0:02:49]}  Ne4 {[%clk 0:02:49]} 8. Nxe4 {[%clk 0:02:49]}  Bxe4 {[%clk 0:02:49]} 9. Ne5 {[%clk 0:02:48]}  Bg7 {[%clk 0:02:45]} 10. Nxd7 {[%clk 0:02:47]}  Qxd7 {[%clk 0:02:46]} 11. f3 {[%clk 0:02:44]}  Bf5 {[%clk 0:02:46]} 12. g4 {[%clk 0:02:45]}  Be6 {[%clk 0:02:46]} 13. h4 {[%clk 0:02:45]}  h5 {[%clk 0:02:45]} 14. g5 {[%clk 0:02:44]}  Bf5 {[%clk 0:02:39]} 15. Qh2 {[%clk 0:02:41]}  O-O-O {[%clk 0:02:27]} 16. O-O-O {[%clk 0:02:37]}  Rhe8 {[%clk 0:02:18]} 17. Bg3 {[%clk 0:02:21]}  b5 {[%clk 0:02:13]} 18. Qd2 {[%clk 0:02:12]}  e5 {[%clk 0:01:55]} 19. Qc3 {[%clk 0:02:07]}  exd4 {[%clk 0:01:52]} 20. exd4 {[%clk 0:02:07]}  Kb7 {[%clk 0:01:52]} 21. Qa5 {[%clk 0:01:58]}  Re7 {[%clk 0:01:30]} 22. a4 {[%clk 0:01:39]}  a6 {[%clk 0:01:30]} 23. Bd3 {[%clk 0:01:32]}  Rde8 {[%clk 0:01:28]} 24. Bxf5 {[%clk 0:01:27]}  Qxf5 {[%clk 0:01:27]} 25. Rd3 {[%clk 0:01:26]}  Qc8 {[%clk 0:00:16]} 26. axb5 {[%clk 0:01:05]}  axb5 {[%clk 0:00:14]} 27. Ra3 {[%clk 0:01:06]}  Qa8 {[%clk 0:00:13]} 28. Qb4 {[%clk 0:01:06]}  Qd8 {[%clk 0:00:12]} 29. Bd6 {[%clk 0:00:52]}  Bf8 {[%clk 0:00:12]} 30. Qc5 {[%clk 0:00:39]}  Re1+ {[%clk 0:00:09]} 31. Rxe1 {[%clk 0:00:39]}  Rxe1+ {[%clk 0:00:09]} 32. Kd2 {[%clk 0:00:40]}  Bxd6 {[%clk 0:00:03]} 33. Qa7+ {[%clk 0:00:27]}  Kc8 {[%clk 0:00:03]} 34. Ra6 {[%clk 0:00:25]}  Bb4+ {[%clk 0:00:03]} 35. c3 {[%clk 0:00:26]}  Qc7 {[%clk 0:00:03]} 36. Qa8+ {[%clk 0:00:24]}  Kd7 {[%clk 0:00:02]} 37. Ra7 {[%clk 0:00:20]}  Re7 {[%clk 0:00:02]} 38. Rxc7+ {[%clk 0:00:20]}  Kxc7 {[%clk 0:00:03]} 39. cxb4 {[%clk 0:00:21]}  Kd6 {[%clk 0:00:03]} 40. Qd8+ {[%clk 0:00:21]}  Rd7 {[%clk 0:00:03]} 41. Qf6+ {[%clk 0:00:20]}  Kc7 {[%clk 0:00:04]} 42. Kd3 {[%clk 0:00:20]}  Kb7 {[%clk 0:00:04]} 43. f4 {[%clk 0:00:20]}  Kc7 {[%clk 0:00:04]} 44. f5 {[%clk 0:00:20]}  gxf5 {[%clk 0:00:04]} 45. Qxf5 {[%clk 0:00:21]}  Kb7 {[%clk 0:00:05]} 46. Qxd7+ {[%clk 0:00:21]} 1-0


[Site "https://www.chess.com"]

[Event "Titled Tuesday Blitz April 25 Early 2023"]
[White "Balla, Tamas-Kristof"]
[Black "Sahib Singh"]
[WhiteFideId "1208497"]
[BlackFideId "25618342"]
[WhiteElo "2334"]
[BlackElo "1934"]
[Result "0-1"]
[Round "10"]
[TimeControl "180+2"]
[Date "2023.04.25"]
[WhiteClock "0:00:13"]
[BlackClock "0:01:14"]

1. e4 {[%clk 0:03:00]}  c5 {[%clk 0:02:55]} 2. Nf3 {[%clk 0:03:00]}  d6 {[%clk 0:02:55]} 3. d4 {[%clk 0:03:00]}  cxd4 {[%clk 0:02:56]} 4. Qxd4 {[%clk 0:03:01]}  Nc6 {[%clk 0:02:56]} 5. Qe3 {[%clk 0:03:01]}  Nf6 {[%clk 0:02:55]} 6. h3 {[%clk 0:03:01]}  g6 {[%clk 0:02:55]} 7. Be2 {[%clk 0:03:01]}  Bg7 {[%clk 0:02:56]} 8. O-O {[%clk 0:03:02]}  O-O {[%clk 0:02:56]} 9. Rd1 {[%clk 0:03:03]}  Qc7 {[%clk 0:02:56]} 10. c4 {[%clk 0:03:01]}  Nd7 {[%clk 0:02:54]} 11. Nc3 {[%clk 0:02:58]}  Nc5 {[%clk 0:02:50]} 12. Rb1 {[%clk 0:02:48]}  Ne6 {[%clk 0:02:44]} 13. b3 {[%clk 0:02:43]}  Nc5 {[%clk 0:02:36]} 14. Bb2 {[%clk 0:02:38]}  b6 {[%clk 0:02:25]} 15. Nd5 {[%clk 0:02:38]}  Qb7 {[%clk 0:02:25]} 16. Bxg7 {[%clk 0:02:37]}  Kxg7 {[%clk 0:02:26]} 17. Nh2 {[%clk 0:02:30]}  f6 {[%clk 0:02:20]} 18. Ng4 {[%clk 0:02:13]}  a5 {[%clk 0:02:11]} 19. Qh6+ {[%clk 0:02:10]}  Kg8 {[%clk 0:02:11]} 20. a3 {[%clk 0:01:56]}  Nxe4 {[%clk 0:02:08]} 21. Bf3 {[%clk 0:01:55]}  f5 {[%clk 0:02:04]} 22. Bxe4 {[%clk 0:01:37]}  fxe4 {[%clk 0:02:03]} 23. Re1 {[%clk 0:01:28]}  Bxg4 {[%clk 0:02:01]} 24. hxg4 {[%clk 0:01:29]}  e6 {[%clk 0:02:01]} 25. Nf4 {[%clk 0:01:26]}  Qf7 {[%clk 0:01:58]} 26. Rxe4 {[%clk 0:01:21]}  d5 {[%clk 0:01:37]} 27. Rxe6 {[%clk 0:01:12]}  Nd4 {[%clk 0:01:35]} 28. Rxg6+ {[%clk 0:00:36]}  hxg6 {[%clk 0:01:34]} 29. Nxg6 {[%clk 0:00:36]}  Qxf2+ {[%clk 0:01:28]} 30. Kh1 {[%clk 0:00:33]}  Qf6 {[%clk 0:01:23]} 31. Qh5 {[%clk 0:00:17]}  Kg7 {[%clk 0:01:16]} 32. Nh4 {[%clk 0:00:13]}  Rh8 {[%clk 0:01:15]} 33. Nf5+ {[%clk 0:00:13]}  Nxf5 {[%clk 0:01:14]} 0-1


[Site "https://www.chess.com"]

[Event "Titled Tuesday Blitz April 25 Early 2023"]
[White "feuervogel1000000"]
[Black "Bartel, Michal"]
[BlackFideId "1119257"]
[WhiteElo "2447"]
[BlackElo "2282"]
[Result "0-1"]
[Round "10"]
[TimeControl "180+2"]
[Date "2023.04.25"]
[WhiteClock "0:02:38"]
[BlackClock "0:02:48"]

1. e4 {[%clk 0:03:00]}  e5 {[%clk 0:02:57]} 2. Nf3 {[%clk 0:03:00]}  Nc6 {[%clk 0:02:57]} 3. Bb5 {[%clk 0:03:00]}  g6 {[%clk 0:02:57]} 4. c3 {[%clk 0:02:58]}  d6 {[%clk 0:02:55]} 5. d4 {[%clk 0:02:58]}  Bd7 {[%clk 0:02:55]} 6. O-O {[%clk 0:02:56]}  Bg7 {[%clk 0:02:54]} 7. Re1 {[%clk 0:02:54]}  Nge7 {[%clk 0:02:50]} 8. Bg5 {[%clk 0:02:51]}  h6 {[%clk 0:02:50]} 9. Be3 {[%clk 0:02:49]}  O-O {[%clk 0:02:50]} 10. Nbd2 {[%clk 0:02:48]}  Nxd4 {[%clk 0:02:50]} 11. Nxd4 {[%clk 0:02:38]}  exd4 {[%clk 0:02:49]} 12. Bxd4 {[%clk 0:02:38]}  Bxb5 {[%clk 0:02:48]} 0-1


[Site "https://www.chess.com"]

[Event "Titled Tuesday Blitz April 25 Early 2023"]
[White "Mazurkiewicz, Michal"]
[Black "Asavasaetakul, Chawit"]
[WhiteFideId "1124943"]
[BlackFideId "6204856"]
[WhiteElo "2054"]
[BlackElo "1919"]
[Result "0-1"]
[Round "10"]
[TimeControl "180+2"]
[Date "2023.04.25"]
[WhiteClock "0:00:01"]
[BlackClock "0:01:29"]

1. e4 {[%clk 0:03:00]}  d5 {[%clk 0:02:59]} 2. exd5 {[%clk 0:03:00]}  Nf6 {[%clk 0:03:00]} 3. Nf3 {[%clk 0:02:59]}  Nxd5 {[%clk 0:02:56]} 4. d4 {[%clk 0:02:59]}  Bf5 {[%clk 0:02:56]} 5. Be2 {[%clk 0:02:58]}  e6 {[%clk 0:02:57]} 6. O-O {[%clk 0:02:58]}  Be7 {[%clk 0:02:57]} 7. c4 {[%clk 0:02:58]}  Nb4 {[%clk 0:02:57]} 8. Na3 {[%clk 0:02:44]}  O-O {[%clk 0:02:56]} 9. Bd2 {[%clk 0:02:41]}  N8c6 {[%clk 0:02:56]} 10. Bc3 {[%clk 0:02:39]}  Bf6 {[%clk 0:02:53]} 11. Qd2 {[%clk 0:02:38]}  a5 {[%clk 0:02:53]} 12. Rfd1 {[%clk 0:02:22]}  Re8 {[%clk 0:02:50]} 13. Bf1 {[%clk 0:02:07]}  Bg4 {[%clk 0:02:49]} 14. Qf4 {[%clk 0:01:36]}  Bxf3 {[%clk 0:02:40]} 15. Qxf3 {[%clk 0:01:35]}  Nxd4 {[%clk 0:02:40]} 16. Qxb7 {[%clk 0:01:21]}  c5 {[%clk 0:02:40]} 17. Nb5 {[%clk 0:01:12]}  Rb8 {[%clk 0:02:31]} 18. Qe4 {[%clk 0:01:11]}  Nbc6 {[%clk 0:02:26]} 19. Bd3 {[%clk 0:00:35]}  g6 {[%clk 0:02:25]} 20. h4 {[%clk 0:00:23]}  Bxh4 {[%clk 0:02:14]} 21. g3 {[%clk 0:00:13]}  Bf6 {[%clk 0:02:13]} 22. Kg2 {[%clk 0:00:14]}  Nxb5 {[%clk 0:02:05]} 23. cxb5 {[%clk 0:00:14]}  Nd4 {[%clk 0:02:04]} 24. a4 {[%clk 0:00:10]}  Qb6 {[%clk 0:02:02]} 25. Rh1 {[%clk 0:00:09]}  Bg7 {[%clk 0:01:57]} 26. Qh4 {[%clk 0:00:07]}  h5 {[%clk 0:01:56]} 27. g4 {[%clk 0:00:06]}  hxg4 {[%clk 0:01:54]} 28. Qxg4 {[%clk 0:00:05]}  Rbd8 {[%clk 0:01:50]} 29. Be4 {[%clk 0:00:05]}  e5 {[%clk 0:01:42]} 30. Rh2 {[%clk 0:00:05]}  f5 {[%clk 0:01:41]} 31. Qg5 {[%clk 0:00:05]}  fxe4 {[%clk 0:01:40]} 32. Rah1 {[%clk 0:00:06]}  Qf6 {[%clk 0:01:37]} 33. Qg3 {[%clk 0:00:05]}  Qf3+ {[%clk 0:01:33]} 34. Qxf3 {[%clk 0:00:05]}  exf3+ {[%clk 0:01:32]} 35. Kg3 {[%clk 0:00:05]}  e4 {[%clk 0:01:32]} 36. Kg4 {[%clk 0:00:05]}  e3 {[%clk 0:01:32]} 37. fxe3 {[%clk 0:00:05]}  Rxe3 {[%clk 0:01:33]} 38. Bd2 {[%clk 0:00:03]}  Re4+ {[%clk 0:01:32]} 39. Kg3 {[%clk 0:00:03]}  Be5+ {[%clk 0:01:31]} 40. Kf2 {[%clk 0:00:02]}  Re2+ {[%clk 0:01:31]} 41. Kf1 {[%clk 0:00:03]}  Bxh2 {[%clk 0:01:31]} 42. Bc3 {[%clk 0:00:02]}  Nf5 {[%clk 0:01:30]} 43. b6 {[%clk 0:00:01]}  Ng3# {[%clk 0:01:29]} 0-1


[Site "https://www.chess.com"]

[Event "Titled Tuesday Blitz April 25 Early 2023"]
[White "Mouhamad, Joachim"]
[Black "Martic, Ivan"]
[WhiteFideId "656410"]
[BlackFideId "929301"]
[WhiteElo "2125"]
[BlackElo "2360"]
[Result "1/2-1/2"]
[Round "10"]
[TimeControl "180+2"]
[Date "2023.04.25"]
[WhiteClock "0:00:05"]
[BlackClock "0:00:09"]

1. e4 {[%clk 0:03:00]}  c5 {[%clk 0:02:59]} 2. Nf3 {[%clk 0:02:59]}  e6 {[%clk 0:03:00]} 3. d4 {[%clk 0:02:56]}  cxd4 {[%clk 0:03:01]} 4. Nxd4 {[%clk 0:02:57]}  a6 {[%clk 0:03:01]} 5. Bd3 {[%clk 0:02:57]}  Nc6 {[%clk 0:02:57]} 6. Nxc6 {[%clk 0:02:55]}  dxc6 {[%clk 0:02:58]} 7. O-O {[%clk 0:02:53]}  e5 {[%clk 0:02:58]} 8. a4 {[%clk 0:02:53]}  Bd6 {[%clk 0:02:54]} 9. a5 {[%clk 0:02:52]}  Nf6 {[%clk 0:02:53]} 10. Nd2 {[%clk 0:02:52]}  Qe7 {[%clk 0:02:44]} 11. Nc4 {[%clk 0:02:51]}  Bc5 {[%clk 0:02:44]} 12. Be3 {[%clk 0:02:46]}  O-O {[%clk 0:02:42]} 13. Qe2 {[%clk 0:02:40]}  Bg4 {[%clk 0:02:40]} 14. f3 {[%clk 0:02:39]}  Bh5 {[%clk 0:02:27]} 15. Qf2 {[%clk 0:02:35]}  Nd7 {[%clk 0:02:19]} 16. Rfd1 {[%clk 0:02:24]}  f6 {[%clk 0:02:16]} 17. Rd2 {[%clk 0:02:19]}  Rad8 {[%clk 0:02:09]} 18. Rad1 {[%clk 0:02:18]}  Bf7 {[%clk 0:02:09]} 19. Bf1 {[%clk 0:02:12]}  Bxe3 {[%clk 0:01:55]} 20. Qxe3 {[%clk 0:02:11]}  Be6 {[%clk 0:01:42]} 21. Nd6 {[%clk 0:02:08]}  Nb8 {[%clk 0:01:32]} 22. Qb6 {[%clk 0:01:58]}  Rd7 {[%clk 0:01:30]} 23. Nc4 {[%clk 0:01:52]}  Rfd8 {[%clk 0:01:24]} 24. Rxd7 {[%clk 0:01:31]}  Rxd7 {[%clk 0:01:25]} 25. Rxd7 {[%clk 0:01:30]}  Qxd7 {[%clk 0:01:25]} 26. Bd3 {[%clk 0:01:19]}  Kf8 {[%clk 0:01:20]} 27. Qc5+ {[%clk 0:01:19]}  Qe7 {[%clk 0:01:10]} 28. Qa7 {[%clk 0:01:13]}  Qc7 {[%clk 0:01:02]} 29. Kf2 {[%clk 0:01:06]}  Bxc4 {[%clk 0:00:53]} 30. Bxc4 {[%clk 0:01:06]}  Nd7 {[%clk 0:00:46]} 31. Bxa6 {[%clk 0:01:01]}  Qxa5 {[%clk 0:00:46]} 32. Qa8+ {[%clk 0:00:59]}  Ke7 {[%clk 0:00:45]} 33. Qxb7 {[%clk 0:00:49]}  Qd2+ {[%clk 0:00:42]} 34. Be2 {[%clk 0:00:46]}  Qxc2 {[%clk 0:00:42]} 35. Qb4+ {[%clk 0:00:44]}  Qc5+ {[%clk 0:00:42]} 36. Qxc5+ {[%clk 0:00:43]}  Nxc5 {[%clk 0:00:43]} 37. Ke3 {[%clk 0:00:37]}  Kd6 {[%clk 0:00:39]} 38. Kd2 {[%clk 0:00:34]}  Ne6 {[%clk 0:00:39]} 39. b4 {[%clk 0:00:30]}  Kc7 {[%clk 0:00:34]} 40. Kc3 {[%clk 0:00:27]}  Kb6 {[%clk 0:00:33]} 41. Kc4 {[%clk 0:00:27]}  Nd4 {[%clk 0:00:30]} 42. Bd1 {[%clk 0:00:28]}  g5 {[%clk 0:00:28]} 43. g3 {[%clk 0:00:23]}  h6 {[%clk 0:00:26]} 44. f4 {[%clk 0:00:22]}  gxf4 {[%clk 0:00:23]} 45. gxf4 {[%clk 0:00:22]}  Ne6 {[%clk 0:00:23]} 46. fxe5 {[%clk 0:00:21]}  fxe5 {[%clk 0:00:24]} 47. Bg4 {[%clk 0:00:19]}  Nd4 {[%clk 0:00:23]} 48. h3 {[%clk 0:00:17]}  Nb5 {[%clk 0:00:22]} 49. Be2 {[%clk 0:00:13]}  Nd6+ {[%clk 0:00:21]} 50. Kd3 {[%clk 0:00:13]}  c5 {[%clk 0:00:22]} 51. bxc5+ {[%clk 0:00:12]}  Kxc5 {[%clk 0:00:23]} 52. Ke3 {[%clk 0:00:12]}  Kb4 {[%clk 0:00:23]} 53. Kf3 {[%clk 0:00:11]}  Kc3 {[%clk 0:00:23]} 54. Ba6 {[%clk 0:00:10]}  Kd4 {[%clk 0:00:22]} 55. Kg4 {[%clk 0:00:07]}  Nxe4 {[%clk 0:00:20]} 56. Kh5 {[%clk 0:00:07]}  Nc5 {[%clk 0:00:19]} 57. Bf1 {[%clk 0:00:06]}  e4 {[%clk 0:00:18]} 58. Kxh6 {[%clk 0:00:06]}  Ke3 {[%clk 0:00:19]} 59. Kg5 {[%clk 0:00:04]}  Kf2 {[%clk 0:00:18]} 60. Bc4 {[%clk 0:00:02]}  e3 {[%clk 0:00:18]} 61. h4 {[%clk 0:00:02]}  Ne4+ {[%clk 0:00:19]} 62. Kg6 {[%clk 0:00:02]}  Nd2 {[%clk 0:00:13]} 63. Bb5 {[%clk 0:00:03]}  Nf3 {[%clk 0:00:11]} 64. h5 {[%clk 0:00:03]}  Nd4 {[%clk 0:00:11]} 65. Ba6 {[%clk 0:00:04]}  Ne6 {[%clk 0:00:07]} 66. h6 {[%clk 0:00:03]}  e2 {[%clk 0:00:07]} 67. Bxe2 {[%clk 0:00:03]}  Kxe2 {[%clk 0:00:08]} 68. Kf6 {[%clk 0:00:03]}  Nf8 {[%clk 0:00:08]} 69. Kg7 {[%clk 0:00:04]}  Ne6+ {[%clk 0:00:08]} 70. Kf6 {[%clk 0:00:04]}  Nf8 {[%clk 0:00:08]} 71. Kf7 {[%clk 0:00:05]}  Nh7 {[%clk 0:00:08]} 72. Kg7 {[%clk 0:00:05]}  Ng5 {[%clk 0:00:08]} 73. Kg6 {[%clk 0:00:06]}  Ne6 {[%clk 0:00:09]} 74. Kf6 {[%clk 0:00:05]} 1/2-1/2


[Site "https://www.chess.com"]

[Event "Titled Tuesday Blitz April 25 Early 2023"]
[White "BenchGM"]
[Black "Dixit, Nikhil"]
[BlackFideId "5059534"]
[WhiteElo "2412"]
[BlackElo "2207"]
[Result "0-1"]
[Round "10"]
[TimeControl "180+2"]
[Date "2023.04.25"]
[WhiteClock "0:01:47"]
[BlackClock "0:01:51"]

1. d4 {[%clk 0:03:00]}  Nf6 {[%clk 0:02:51]} 2. c4 {[%clk 0:02:59]}  g6 {[%clk 0:02:51]} 3. Nc3 {[%clk 0:02:59]}  Bg7 {[%clk 0:02:52]} 4. e4 {[%clk 0:02:59]}  d6 {[%clk 0:02:53]} 5. h3 {[%clk 0:02:59]}  O-O {[%clk 0:02:53]} 6. Be3 {[%clk 0:03:00]}  c6 {[%clk 0:02:53]} 7. g4 {[%clk 0:02:55]}  a6 {[%clk 0:02:54]} 8. Qd2 {[%clk 0:02:49]}  b5 {[%clk 0:02:50]} 9. f3 {[%clk 0:02:49]}  bxc4 {[%clk 0:02:36]} 10. Bxc4 {[%clk 0:02:50]}  d5 {[%clk 0:02:36]} 11. exd5 {[%clk 0:02:48]}  Nxd5 {[%clk 0:02:37]} 12. Nxd5 {[%clk 0:02:48]}  cxd5 {[%clk 0:02:38]} 13. Bd3 {[%clk 0:02:47]}  Nc6 {[%clk 0:02:38]} 14. Ne2 {[%clk 0:02:47]}  e5 {[%clk 0:02:38]} 15. dxe5 {[%clk 0:02:45]}  Nxe5 {[%clk 0:02:39]} 16. Kf2 {[%clk 0:02:41]}  Nc4 {[%clk 0:02:39]} 17. Bxc4 {[%clk 0:02:39]}  dxc4 {[%clk 0:02:40]} 18. Bd4 {[%clk 0:02:35]}  Qh4+ {[%clk 0:02:38]} 19. Kg2 {[%clk 0:02:34]}  Rd8 {[%clk 0:02:38]} 20. Rad1 {[%clk 0:02:31]}  Bb7 {[%clk 0:02:37]} 21. Qc3 {[%clk 0:02:26]}  Rxd4 {[%clk 0:02:10]} 22. Nxd4 {[%clk 0:02:27]}  h5 {[%clk 0:02:07]} 23. gxh5 {[%clk 0:02:01]}  Qxh5 {[%clk 0:02:02]} 24. Rhe1 {[%clk 0:01:55]}  Rd8 {[%clk 0:01:59]} 25. Re3 {[%clk 0:01:47]}  Qg5+ {[%clk 0:01:55]} 26. Kf2 {[%clk 0:01:47]}  Qh4+ {[%clk 0:01:54]} 27. Ke2 {[%clk 0:01:47]}  Bxd4 {[%clk 0:01:51]} 0-1


[Site "https://www.chess.com"]